[Event "Early-Titled-Tuesday-Blitz-February-20-2024"]
[Site "Chess.com"]
[Date "2024.02.20"]
[Round "1"]
[White "margarita_2703"]
[Black "FoxOnTheRun97"]
[Result "1-0"]
[WhiteElo "2375"]
[BlackElo "2673"]
[TimeControl "180+1"]
[EndTime "8:10:05 PST"]
[Termination "margarita_2703 won by resignation"]

1. e4 {[%clk 0:03:00.9]} 1... c6 {[%clk 0:03:00.2]} 2. d4 {[%clk 0:02:59.8]}
2... d5 {[%clk 0:03:00.8]} 3. e5 {[%clk 0:03:00]} 3... Bf5 {[%clk 0:02:59.9]} 4.
Ne2 {[%clk 0:03:00.5]} 4... e6 {[%clk 0:03:00.1]} 5. Ng3 {[%clk 0:03:01.4]} 5...
Bg6 {[%clk 0:03:00.2]} 6. h4 {[%clk 0:03:02]} 6... h6 {[%clk 0:03:00.1]} 7. h5
{[%clk 0:03:02.7]} 7... Bh7 {[%clk 0:03:00.4]} 8. Bd3 {[%clk 0:03:03.6]} 8...
Bxd3 {[%clk 0:03:00.3]} 9. cxd3 {[%clk 0:03:04.5]} 9... Qb6 {[%clk 0:02:43.5]}
10. Be3 {[%clk 0:02:56.4]} 10... Qxb2 {[%clk 0:02:28.7]} 11. Nd2 {[%clk
0:02:56]} 11... Qa3 {[%clk 0:02:24.1]} 12. Rb1 {[%clk 0:02:49.3]} 12... b6
{[%clk 0:02:14.5]} 13. Rb3 {[%clk 0:02:43.2]} 13... Qxa2 {[%clk 0:02:09.5]} 14.
O-O {[%clk 0:02:21.8]} 14... Ne7 {[%clk 0:02:02]} 15. Qg4 {[%clk 0:02:18.3]}
15... Qa6 {[%clk 0:01:56.5]} 16. f4 {[%clk 0:02:17.3]} 16... Qc8 {[%clk
0:01:53]} 17. f5 {[%clk 0:02:11.7]} 17... exf5 {[%clk 0:01:43.9]} 18. Nxf5
{[%clk 0:02:12.6]} 18... Nxf5 {[%clk 0:01:43.8]} 19. Rxf5 {[%clk 0:02:11.5]}
19... Qe6 {[%clk 0:01:35.3]} 20. Rb1 {[%clk 0:02:07.2]} 20... a5 {[%clk
0:01:06]} 21. Rxb6 {[%clk 0:02:04]} 21... Nd7 {[%clk 0:01:05.7]} 22. Rb1 {[%clk
0:01:53.5]} 22... a4 {[%clk 0:01:05.6]} 23. Qf3 {[%clk 0:01:49.4]} 23... a3
{[%clk 0:01:01.9]} 24. Rf1 {[%clk 0:01:47.4]} 24... Bb4 {[%clk 0:00:49.3]} 25.
Nb3 {[%clk 0:01:46.4]} 25... Rf8 {[%clk 0:00:46.3]} 26. Bd2 {[%clk 0:01:34.6]}
26... Bxd2 {[%clk 0:00:45.4]} 27. Nxd2 {[%clk 0:01:35.5]} 27... a2 {[%clk
0:00:45.8]} 28. Nb3 {[%clk 0:01:34.9]} 28... Ra3 {[%clk 0:00:40.5]} 29. Na1
{[%clk 0:01:33.9]} 29... c5 {[%clk 0:00:34.5]} 30. Qe3 {[%clk 0:01:27.8]} 30...
c4 {[%clk 0:00:31.7]} 31. Qd2 {[%clk 0:01:23]} 31... c3 {[%clk 0:00:28.2]} 32.
Qf2 {[%clk 0:01:14.3]} 32... Ra7 {[%clk 0:00:24.1]} 33. Qg3 {[%clk 0:01:12.7]}
33... Qb6 {[%clk 0:00:19.8]} 34. R5f4 {[%clk 0:01:08.1]} 34... c2 {[%clk
0:00:15.5]} 35. Nxc2 {[%clk 0:01:06.8]} 35... Qb1 {[%clk 0:00:13.6]} 36. Na1
{[%clk 0:01:06.5]} 36... Rc7 {[%clk 0:00:11.9]} 37. Qe3 {[%clk 0:00:57.8]} 37...
Qb2 {[%clk 0:00:08.9]} 38. R4f2 {[%clk 0:00:57.5]} 38... Qa3 {[%clk 0:00:08]}
39. e6 {[%clk 0:00:56.8]} 39... Nf6 {[%clk 0:00:06.8]} 40. exf7+ {[%clk
0:00:44.7]} 40... Kxf7 {[%clk 0:00:07.7]} 41. Qe5 {[%clk 0:00:42.5]} 41... Kg8
{[%clk 0:00:05.5]} 42. Qxc7 {[%clk 0:00:40.7]} 42... Qxd3 {[%clk 0:00:06.1]} 43.
Qe5 {[%clk 0:00:37.1]} 43... Rf7 {[%clk 0:00:04.1]} 44. Rxf6 {[%clk 0:00:32.2]}
44... gxf6 {[%clk 0:00:04.3]} 45. Qf4 {[%clk 0:00:25.7]} 45... Kg7 {[%clk
0:00:03.4]} 46. Qg4+ {[%clk 0:00:25.3]} 46... Kh7 {[%clk 0:00:03.5]} 47. Qg6+
{[%clk 0:00:24.8]} 47... Qxg6 {[%clk 0:00:03.6]} 48. hxg6+ {[%clk 0:00:25.7]}
48... Kxg6 {[%clk 0:00:04.5]} 49. Rf2 {[%clk 0:00:26.1]} 49... Ra7 {[%clk
0:00:04.9]} 50. Kf1 {[%clk 0:00:25.5]} 50... Ra4 {[%clk 0:00:05.5]} 51. Ke1
{[%clk 0:00:15.2]} 51... f5 {[%clk 0:00:05.5]} 52. Rd2 {[%clk 0:00:14.8]} 52...
f4 {[%clk 0:00:05.2]} 53. Ke2 {[%clk 0:00:15.1]} 53... Kf5 {[%clk 0:00:05.6]}
54. Kf3 {[%clk 0:00:15.3]} 54... Ra3+ {[%clk 0:00:05.8]} 55. Kf2 {[%clk
0:00:15.7]} 55... h5 {[%clk 0:00:06.4]} 56. Re2 {[%clk 0:00:15.7]} 56... Kg4
{[%clk 0:00:05.7]} 57. Re5 {[%clk 0:00:15.8]} 57... Rd3 {[%clk 0:00:05.6]} 58.
Re2 {[%clk 0:00:15.8]} 58... Rxd4 {[%clk 0:00:04.2]} 59. Rxa2 {[%clk 0:00:15.9]}
59... Rc4 {[%clk 0:00:04]} 60. Rd2 {[%clk 0:00:15.8]} 60... d4 {[%clk
0:00:03.1]} 61. Nb3 {[%clk 0:00:16.4]} 61... d3 {[%clk 0:00:02.7]} 62. Rxd3
{[%clk 0:00:16.4]} 62... Rc2+ {[%clk 0:00:02.9]} 63. Nd2 {[%clk 0:00:17.1]}
63... Ra2 {[%clk 0:00:02.9]} 64. Rd8 {[%clk 0:00:17.1]} 64... h4 {[%clk
0:00:03]} 65. Rg8+ {[%clk 0:00:16.7]} 65... Kf5 {[%clk 0:00:03.4]} 66. Ke2
{[%clk 0:00:17.1]} 66... Ra3 {[%clk 0:00:03.5]} 67. Rf8+ {[%clk 0:00:17.2]}
67... Kg5 {[%clk 0:00:03.7]} 68. Nf3+ {[%clk 0:00:17.6]} 68... Kg4 {[%clk
0:00:04.1]} 69. Rg8+ {[%clk 0:00:18]} 69... Kf5 {[%clk 0:00:04.1]} 70. Rg5+
{[%clk 0:00:17.7]} 70... Kf6 {[%clk 0:00:04.2]} 71. Rh5 {[%clk 0:00:18.1]} 71...
Ra2+ {[%clk 0:00:04.1]} 72. Kf1 {[%clk 0:00:18.5]} 72... Ra1+ {[%clk 0:00:04.4]}
73. Kf2 {[%clk 0:00:19]} 73... Ra2+ {[%clk 0:00:04.8]} 74. Kg1 {[%clk
0:00:19.4]} 74... Ra1+ {[%clk 0:00:05.3]} 75. Kh2 {[%clk 0:00:19.8]} 75... Ra4
{[%clk 0:00:05.2]} 76. Rxh4 {[%clk 0:00:19.8]} 76... Kf5 {[%clk 0:00:05.8]} 77.
Rh5+ {[%clk 0:00:20.1]} 77... Kf6 {[%clk 0:00:06.1]} 78. Rb5 {[%clk 0:00:20.7]}
78... Rc4 {[%clk 0:00:05.5]} 79. Kh3 {[%clk 0:00:20.5]} 79... Rc2 {[%clk
0:00:05.7]} 80. Rg5 {[%clk 0:00:20.4]} 80... Rc3 {[%clk 0:00:05.3]} 81. Rg4
{[%clk 0:00:19.6]} 81... Kf5 {[%clk 0:00:04.7]} 82. Rg5+ {[%clk 0:00:19.4]}
82... Kf6 {[%clk 0:00:04.8]} 83. Kg4 {[%clk 0:00:19.9]} 83... Rc4 {[%clk
0:00:04.9]} 84. Rf5+ {[%clk 0:00:19.9]} 84... Kg6 {[%clk 0:00:05.5]} 85. Rxf4
{[%clk 0:00:20.8]} 85... Rc2 {[%clk 0:00:06]} 86. Kg3 {[%clk 0:00:21]} 86... Ra2
{[%clk 0:00:05.4]} 87. Rg4+ {[%clk 0:00:21.9]} 87... Kf5 {[%clk 0:00:05.6]} 88.
Rb4 {[%clk 0:00:22.5]} 88... Kg6 {[%clk 0:00:06.1]} 89. Rb5 {[%clk 0:00:22.7]}
89... Kf6 {[%clk 0:00:06.4]} 90. Kh3 {[%clk 0:00:23]} 90... Kg6 {[%clk
0:00:06.8]} 91. g4 {[%clk 0:00:22.9]} 91... Ra3 {[%clk 0:00:07.4]} 92. Kg3
{[%clk 0:00:23.2]} 92... Kf6 {[%clk 0:00:07.8]} 93. Rf5+ {[%clk 0:00:22.9]}
93... Kg6 {[%clk 0:00:08.3]} 94. Kh4 {[%clk 0:00:20.8]} 94... Ra1 {[%clk
0:00:08.1]} 95. Ne5+ {[%clk 0:00:21]} 95... Kg7 {[%clk 0:00:08.6]} 96. Kg5
{[%clk 0:00:21.9]} 96... Ra7 {[%clk 0:00:08]} 97. Nf3 {[%clk 0:00:19.9]} 97...
Ra4 {[%clk 0:00:06.8]} 98. Ne5 {[%clk 0:00:19.6]} 98... Ra7 {[%clk 0:00:06.5]}
99. Rf7+ {[%clk 0:00:19.1]} 99... Rxf7 {[%clk 0:00:05.9]} 100. Nxf7 {[%clk
0:00:20]} 100... Kxf7 {[%clk 0:00:06.4]} 101. Kh6 {[%clk 0:00:20.7]} 101... Kg8
{[%clk 0:00:07]} 102. Kg6 {[%clk 0:00:19.7]} 102... Kh8 {[%clk 0:00:05.7]} 103.
Kf7 {[%clk 0:00:18.4]} 103... Kh7 {[%clk 0:00:06.2]} 104. g5 {[%clk 0:00:18.5]}
104... Kh8 {[%clk 0:00:06.7]} 105. Kg6 {[%clk 0:00:16.7]} 105... Kg8 {[%clk
0:00:07]} 106. Kf6 {[%clk 0:00:16.6]} 106... Kf8 {[%clk 0:00:05.3]} 107. g6
{[%clk 0:00:16.8]} 107... Kg8 {[%clk 0:00:05.7]} 108. g7 {[%clk 0:00:17.2]}
108... Kh7 {[%clk 0:00:06.1]} 109. Kf7 {[%clk 0:00:18.1]} 109... Kh6 {[%clk
0:00:06.1]} 110. g8=Q {[%clk 0:00:19]} 1-0

[Event "Early-Titled-Tuesday-Blitz-February-20-2024"]
[Site "Chess.com"]
[Date "2024.02.20"]
[Round "2"]
[White "xamax2000"]
[Black "Kleyton_Lima"]
[Result "1-0"]
[WhiteElo "2856"]
[BlackElo "2572"]
[TimeControl "180+1"]
[EndTime "8:11:36 PST"]
[Termination "xamax2000 won by resignation"]

1. Nf3 {[%clk 0:03:00.9]} 1... c5 {[%clk 0:02:59.1]} 2. c4 {[%clk 0:03:00.5]}
2... Nf6 {[%clk 0:02:58.1]} 3. g3 {[%clk 0:02:59.7]} 3... d5 {[%clk 0:02:53]} 4.
cxd5 {[%clk 0:02:59.6]} 4... Nxd5 {[%clk 0:02:53.9]} 5. Bg2 {[%clk 0:02:59.3]}
5... g6 {[%clk 0:02:54.6]} 6. h4 {[%clk 0:02:58.7]} 6... h6 {[%clk 0:02:54.2]}
7. Nc3 {[%clk 0:02:57.9]} 7... Bg7 {[%clk 0:02:51.8]} 8. O-O {[%clk 0:02:58.1]}
8... Nc6 {[%clk 0:02:51.9]} 9. d3 {[%clk 0:02:58.3]} 9... O-O {[%clk 0:02:51.4]}
10. Nxd5 {[%clk 0:02:57]} 10... Qxd5 {[%clk 0:02:51.7]} 11. Be3 {[%clk
0:02:57.8]} 11... Bd7 {[%clk 0:02:44.3]} 12. Qc1 {[%clk 0:02:51.2]} 12... Kh7
{[%clk 0:02:34.7]} 13. Ng5+ {[%clk 0:02:51.2]} 1-0

[Event "Early-Titled-Tuesday-Blitz-February-20-2024"]
[Site "Chess.com"]
[Date "2024.02.20"]
[Round "2"]
[White "the_blue_pill"]
[Black "jens1102"]
[Result "0-1"]
[WhiteElo "2399"]
[BlackElo "2714"]
[TimeControl "180+1"]
[EndTime "8:13:46 PST"]
[Termination "jens1102 won by checkmate"]

1. b3 {[%clk 0:02:59.7]} 1... e5 {[%clk 0:02:59.4]} 2. Bb2 {[%clk 0:02:59.5]}
2... Nc6 {[%clk 0:03:00.1]} 3. c4 {[%clk 0:03:00]} 3... Nf6 {[%clk 0:03:00.4]}
4. e3 {[%clk 0:03:00.3]} 4... d5 {[%clk 0:03:00.7]} 5. cxd5 {[%clk 0:03:00.4]}
5... Nxd5 {[%clk 0:03:01.6]} 6. a3 {[%clk 0:02:59.7]} 6... Be6 {[%clk
0:03:00.7]} 7. Qc2 {[%clk 0:02:59.8]} 7... a6 {[%clk 0:02:56.5]} 8. Nf3 {[%clk
0:02:59.5]} 8... Bd6 {[%clk 0:02:56.4]} 9. d3 {[%clk 0:02:57.8]} 9... O-O {[%clk
0:02:56.2]} 10. Nbd2 {[%clk 0:02:57.4]} 10... f5 {[%clk 0:02:53.3]} 11. Be2
{[%clk 0:02:57]} 11... Qe7 {[%clk 0:02:48.2]} 12. O-O {[%clk 0:02:55.9]} 12...
Rf6 {[%clk 0:02:41.3]} 13. Ng5 {[%clk 0:02:39.8]} 13... Rh6 {[%clk 0:02:16.3]}
14. Nxe6 {[%clk 0:02:39.6]} 14... Qxe6 {[%clk 0:02:17.2]} 15. g3 {[%clk
0:02:26.1]} 15... f4 {[%clk 0:02:00.2]} 16. e4 {[%clk 0:02:06.6]} 16... Qh3
{[%clk 0:01:50.5]} 17. Nf3 {[%clk 0:02:02.5]} 17... fxg3 {[%clk 0:01:39.1]} 18.
fxg3 {[%clk 0:02:00.3]} 18... Ne3 {[%clk 0:01:35.9]} 19. Qd2 {[%clk 0:01:51.1]}
19... Qg2# {[%clk 0:01:35.3]} 0-1

[Event "Early-Titled-Tuesday-Blitz-February-20-2024"]
[Site "Chess.com"]
[Date "2024.02.20"]
[Round "2"]
[White "Zavgorodniy_Sergiy"]
[Black "Sina_Movahed"]
[Result "0-1"]
[WhiteElo "2620"]
[BlackElo "2963"]
[TimeControl "180+1"]
[EndTime "8:13:47 PST"]
[Termination "Sina_Movahed won by resignation"]

1. e4 {[%clk 0:02:28.4]} 1... c5 {[%clk 0:02:58.9]} 2. Nf3 {[%clk 0:02:26.9]}
2... d6 {[%clk 0:02:59.5]} 3. Bb5+ {[%clk 0:02:25.9]} 3... Nd7 {[%clk
0:02:59.1]} 4. Nc3 {[%clk 0:02:25.1]} 4... Nf6 {[%clk 0:02:59]} 5. O-O {[%clk
0:02:24.4]} 5... a6 {[%clk 0:02:56.4]} 6. Bxd7+ {[%clk 0:02:16.1]} 6... Bxd7
{[%clk 0:02:57.3]} 7. Re1 {[%clk 0:02:16.3]} 7... e6 {[%clk 0:02:56.3]} 8. d3
{[%clk 0:02:16.6]} 8... Be7 {[%clk 0:02:43.4]} 9. h3 {[%clk 0:02:16.8]} 9... O-O
{[%clk 0:02:43.4]} 10. Bf4 {[%clk 0:02:15.7]} 10... Bc6 {[%clk 0:02:41.1]} 11.
a4 {[%clk 0:02:14.3]} 11... b5 {[%clk 0:02:40.7]} 12. axb5 {[%clk 0:02:13.9]}
12... axb5 {[%clk 0:02:41.6]} 13. Rxa8 {[%clk 0:02:13.3]} 13... Qxa8 {[%clk
0:02:42.5]} 14. Qa1 {[%clk 0:02:13.4]} 14... Qb7 {[%clk 0:02:42.1]} 15. b3
{[%clk 0:02:12.9]} 15... Nd7 {[%clk 0:02:37.3]} 16. Nd2 {[%clk 0:02:00.3]} 16...
Bf6 {[%clk 0:02:21.7]} 17. Bxd6 {[%clk 0:01:59.5]} 17... Ra8 {[%clk 0:02:21.5]}
18. Qb2 {[%clk 0:01:52.5]} 18... b4 {[%clk 0:02:20.8]} 19. e5 {[%clk 0:01:50.3]}
19... bxc3 {[%clk 0:02:19.8]} 20. Qxc3 {[%clk 0:01:50.9]} 20... Bd8 {[%clk
0:02:20.7]} 21. f3 {[%clk 0:01:47.5]} 21... Ba5 {[%clk 0:02:20.3]} 22. b4 {[%clk
0:01:43.7]} 22... Bxb4 {[%clk 0:02:18.2]} 23. Qb2 {[%clk 0:01:37.7]} 23... Bxd2
{[%clk 0:02:17.6]} 24. Qxb7 {[%clk 0:01:34.8]} 24... Bxb7 {[%clk 0:02:18.5]} 25.
Rb1 {[%clk 0:01:34.8]} 25... Bc6 {[%clk 0:02:18.8]} 26. Kf2 {[%clk 0:01:32.1]}
26... Bf4 {[%clk 0:02:17.4]} 27. g3 {[%clk 0:01:31.9]} 27... Bxe5 {[%clk
0:02:17.5]} 0-1

[Event "Early-Titled-Tuesday-Blitz-February-20-2024"]
[Site "Chess.com"]
[Date "2024.02.20"]
[Round "2"]
[White "YairParkhov"]
[Black "Me_ch_an"]
[Result "1-0"]
[WhiteElo "2557"]
[BlackElo "2327"]
[TimeControl "180+1"]
[EndTime "8:13:53 PST"]
[Termination "YairParkhov won by resignation"]

1. e4 {[%clk 0:03:00.6]} 1... c5 {[%clk 0:03:00]} 2. Nf3 {[%clk 0:03:00.3]} 2...
Nc6 {[%clk 0:03:00.2]} 3. Bb5 {[%clk 0:02:59.1]} 3... Qb6 {[%clk 0:02:55.9]} 4.
Nc3 {[%clk 0:02:58.3]} 4... e6 {[%clk 0:02:51.7]} 5. O-O {[%clk 0:02:55.9]} 5...
a6 {[%clk 0:02:49.6]} 6. Bxc6 {[%clk 0:02:55.7]} 6... Qxc6 {[%clk 0:02:49.2]} 7.
d4 {[%clk 0:02:56.2]} 7... cxd4 {[%clk 0:02:48.9]} 8. Nxd4 {[%clk 0:02:57.1]}
8... Qc7 {[%clk 0:02:48.9]} 9. Re1 {[%clk 0:02:57.6]} 9... d6 {[%clk 0:02:48.3]}
10. a4 {[%clk 0:02:54.2]} 10... b6 {[%clk 0:02:43.8]} 11. Ra3 {[%clk 0:02:51.1]}
11... Nf6 {[%clk 0:02:42.4]} 12. Nd5 {[%clk 0:02:43]} 12... exd5 {[%clk
0:02:32.3]} 13. exd5+ {[%clk 0:02:40.7]} 13... Be7 {[%clk 0:02:32.7]} 14. Nc6
{[%clk 0:02:34.6]} 14... Nxd5 {[%clk 0:02:23.3]} 15. Qxd5 {[%clk 0:02:33]} 15...
Be6 {[%clk 0:02:21.7]} 16. Nxe7 {[%clk 0:02:27.6]} 16... Ra7 {[%clk 0:02:06.1]}
17. Nc6 {[%clk 0:02:12.8]} 17... O-O {[%clk 0:01:29]} 18. Qf3 {[%clk 0:02:08.1]}
18... Raa8 {[%clk 0:01:24.9]} 19. Rc3 {[%clk 0:02:02.1]} 1-0

[Event "Early-Titled-Tuesday-Blitz-February-20-2024"]
[Site "Chess.com"]
[Date "2024.02.20"]
[Round "2"]
[White "Hikaru"]
[Black "ZachHKL"]
[Result "1-0"]
[WhiteElo "3266"]
[BlackElo "2113"]
[TimeControl "180+1"]
[EndTime "8:14:11 PST"]
[Termination "Hikaru won by resignation"]

1. h4 {[%clk 0:03:00.9]} 1... d5 {[%clk 0:02:56.9]} 2. d4 {[%clk 0:03:00.6]}
2... Nf6 {[%clk 0:02:54.8]} 3. f3 {[%clk 0:03:00.7]} 3... h5 {[%clk 0:02:53.1]}
4. c4 {[%clk 0:03:00.3]} 4... c6 {[%clk 0:02:52.7]} 5. Nc3 {[%clk 0:02:59.9]}
5... e6 {[%clk 0:02:50.8]} 6. Bf4 {[%clk 0:02:58.4]} 6... Bd6 {[%clk 0:02:49.6]}
7. Qd2 {[%clk 0:02:58.9]} 7... Bxf4 {[%clk 0:02:47.5]} 8. Qxf4 {[%clk
0:02:59.8]} 8... Na6 {[%clk 0:02:46.8]} 9. e3 {[%clk 0:02:59.7]} 9... Qb6 {[%clk
0:02:46.2]} 10. O-O-O {[%clk 0:02:59.7]} 10... dxc4 {[%clk 0:02:41.2]} 11. Qg5
{[%clk 0:02:58.6]} 11... Rg8 {[%clk 0:02:39.3]} 12. Bxc4 {[%clk 0:02:57.7]}
12... Qb4 {[%clk 0:02:37.8]} 13. Bxa6 {[%clk 0:02:51.1]} 13... bxa6 {[%clk
0:02:36.1]} 14. Nge2 {[%clk 0:02:51.8]} 14... Rb8 {[%clk 0:02:36.1]} 15. Rd2
{[%clk 0:02:52.1]} 15... Bd7 {[%clk 0:02:32.7]} 16. e4 {[%clk 0:02:51.7]} 16...
a5 {[%clk 0:02:31.4]} 17. Rhd1 {[%clk 0:02:51.2]} 17... Rd8 {[%clk 0:02:23.1]}
18. Nf4 {[%clk 0:02:51.3]} 18... Qe7 {[%clk 0:02:17.4]} 19. Qxa5 {[%clk
0:02:50.2]} 19... Rb8 {[%clk 0:02:09.1]} 20. Qxa7 {[%clk 0:02:49.9]} 20... Qb4
{[%clk 0:02:09]} 21. Nd3 {[%clk 0:02:49.3]} 21... Qb6 {[%clk 0:02:08.6]} 22.
Qxb6 {[%clk 0:02:48.7]} 22... Rxb6 {[%clk 0:02:08.9]} 23. e5 {[%clk 0:02:48.6]}
23... Nd5 {[%clk 0:02:08.6]} 24. Nxd5 {[%clk 0:02:48.3]} 24... cxd5 {[%clk
0:02:08.8]} 25. Nc5 {[%clk 0:02:49]} 25... Ke7 {[%clk 0:02:08.8]} 26. b3 {[%clk
0:02:49.6]} 26... Ra8 {[%clk 0:02:08.6]} 27. a4 {[%clk 0:02:49.9]} 27... Bc6
{[%clk 0:02:04.7]} 28. Ra2 {[%clk 0:02:49.1]} 28... Rab8 {[%clk 0:02:04.2]} 29.
Kb2 {[%clk 0:02:48.6]} 29... Rb4 {[%clk 0:02:02.4]} 30. Kc3 {[%clk 0:02:48.1]}
30... f6 {[%clk 0:01:56.1]} 31. Re1 {[%clk 0:02:48.3]} 31... fxe5 {[%clk
0:01:54.8]} 32. Rxe5 {[%clk 0:02:49.2]} 32... Bd7 {[%clk 0:01:53]} 33. a5 {[%clk
0:02:48.6]} 33... R4b5 {[%clk 0:01:48.9]} 34. a6 {[%clk 0:02:48.4]} 34... Ra8
{[%clk 0:01:49.5]} 35. Rae2 {[%clk 0:02:46.2]} 35... Rb6 {[%clk 0:01:49.2]} 36.
Rxh5 {[%clk 0:02:45.3]} 36... Kd6 {[%clk 0:01:48.9]} 37. Rg5 {[%clk 0:02:43.9]}
37... Rc8 {[%clk 0:01:47]} 38. Kb2 {[%clk 0:02:39.9]} 38... Rg8 {[%clk
0:01:44.6]} 39. h5 {[%clk 0:02:39.1]} 39... Rbb8 {[%clk 0:01:43.3]} 40. h6
{[%clk 0:02:39.2]} 40... gxh6 {[%clk 0:01:42.8]} 41. Rxg8 {[%clk 0:02:36.9]}
41... Rxg8 {[%clk 0:01:42.6]} 42. b4 {[%clk 0:02:36.9]} 42... Re8 {[%clk
0:01:40.7]} 43. Nxd7 {[%clk 0:02:36.9]} 43... Kxd7 {[%clk 0:01:40.7]} 44. b5
{[%clk 0:02:37.6]} 44... Kc7 {[%clk 0:01:40.7]} 45. Kb3 {[%clk 0:02:38.3]} 45...
Kb6 {[%clk 0:01:40.1]} 46. Kb4 {[%clk 0:02:39]} 46... Re7 {[%clk 0:01:39.5]} 47.
Rc2 {[%clk 0:02:38.9]} 47... Re8 {[%clk 0:01:36.9]} 48. Rc6+ {[%clk 0:02:38.9]}
48... Ka7 {[%clk 0:01:37.6]} 49. Ka5 {[%clk 0:02:39.8]} 49... Re7 {[%clk
0:01:37.2]} 50. b6+ {[%clk 0:02:40.7]} 50... Kb8 {[%clk 0:01:37.4]} 51. a7+
{[%clk 0:02:41.2]} 51... Kb7 {[%clk 0:01:35.4]} 52. Rc7+ {[%clk 0:02:41.7]}
52... Rxc7 {[%clk 0:01:35.2]} 53. bxc7 {[%clk 0:02:42.6]} 1-0

[Event "Early-Titled-Tuesday-Blitz-February-20-2024"]
[Site "Chess.com"]
[Date "2024.02.20"]
[Round "2"]
[White "semchik73"]
[Black "sergoy"]
[Result "0-1"]
[WhiteElo "2408"]
[BlackElo "2981"]
[TimeControl "180+1"]
[EndTime "8:14:15 PST"]
[Termination "sergoy won by resignation"]

1. Nf3 {[%clk 0:03:00.2]} 1... d5 {[%clk 0:02:59.7]} 2. c4 {[%clk 0:03:00.4]}
2... d4 {[%clk 0:02:56.5]} 3. e3 {[%clk 0:03:00.6]} 3... Nc6 {[%clk 0:02:56.7]}
4. b4 {[%clk 0:03:00.7]} 4... dxe3 {[%clk 0:02:51.5]} 5. fxe3 {[%clk 0:03:00.9]}
5... Nxb4 {[%clk 0:02:52.1]} 6. d4 {[%clk 0:03:00.8]} 6... e6 {[%clk 0:02:50.7]}
7. a3 {[%clk 0:02:59.8]} 7... Nc6 {[%clk 0:02:50.6]} 8. Bd3 {[%clk 0:03:00]}
8... Nf6 {[%clk 0:02:50]} 9. O-O {[%clk 0:02:59.9]} 9... Be7 {[%clk 0:02:42.2]}
10. Bb2 {[%clk 0:02:56.8]} 10... e5 {[%clk 0:02:31.2]} 11. Nxe5 {[%clk
0:02:43.9]} 11... Nxe5 {[%clk 0:02:28.2]} 12. dxe5 {[%clk 0:02:43.9]} 12... Ng4
{[%clk 0:02:28.2]} 13. Qf3 {[%clk 0:02:29.5]} 13... Qxd3 {[%clk 0:02:26.1]} 14.
Qxf7+ {[%clk 0:02:29.1]} 14... Kd8 {[%clk 0:02:25.8]} 15. Nc3 {[%clk 0:02:24.8]}
15... Qxe3+ {[%clk 0:02:13.2]} 16. Kh1 {[%clk 0:02:24.5]} 16... Rf8 {[%clk
0:02:08.1]} 17. Rad1+ {[%clk 0:01:29.7]} 17... Bd7 {[%clk 0:02:08.3]} 18. Qxe7+
{[%clk 0:01:17]} 18... Kxe7 {[%clk 0:02:07.4]} 19. Nd5+ {[%clk 0:01:17.4]} 19...
Ke8 {[%clk 0:01:56.2]} 20. Nxe3 {[%clk 0:01:15]} 20... Rxf1+ {[%clk 0:01:53.7]}
21. Nxf1 {[%clk 0:01:13.3]} 21... Nf2+ {[%clk 0:01:54]} 22. Kg1 {[%clk 0:01:13]}
22... Nxd1 {[%clk 0:01:54.9]} 0-1

[Event "Early-Titled-Tuesday-Blitz-February-20-2024"]
[Site "Chess.com"]
[Date "2024.02.20"]
[Round "2"]
[White "Cheer_Down"]
[Black "DAVIDHDZSTS"]
[Result "0-1"]
[WhiteElo "2399"]
[BlackElo "1949"]
[TimeControl "180+1"]
[EndTime "8:14:16 PST"]
[Termination "DAVIDHDZSTS won by resignation"]

1. e4 {[%clk 0:02:52.5]} 1... c5 {[%clk 0:02:59.2]} 2. Nf3 {[%clk 0:02:51.9]}
2... e6 {[%clk 0:02:58.7]} 3. d4 {[%clk 0:02:51.6]} 3... cxd4 {[%clk 0:02:58.4]}
4. Nxd4 {[%clk 0:02:52.5]} 4... a6 {[%clk 0:02:58.8]} 5. c4 {[%clk 0:02:51.9]}
5... Nf6 {[%clk 0:02:58.2]} 6. Nc3 {[%clk 0:02:50.7]} 6... Qc7 {[%clk
0:02:54.5]} 7. a3 {[%clk 0:02:50]} 7... Nc6 {[%clk 0:02:51.9]} 8. Be3 {[%clk
0:02:45]} 8... Bd6 {[%clk 0:02:47.8]} 9. Ndb5 {[%clk 0:02:38.8]} 9... axb5
{[%clk 0:02:44.9]} 10. Nxb5 {[%clk 0:02:38.9]} 10... Qa5+ {[%clk 0:02:43.1]} 11.
Bd2 {[%clk 0:02:37.1]} 11... Bb4 {[%clk 0:02:39.5]} 12. axb4 {[%clk 0:02:10.1]}
12... Qxa1 {[%clk 0:02:38.7]} 13. Nc7+ {[%clk 0:02:10]} 13... Ke7 {[%clk
0:02:37.9]} 14. Nxa8 {[%clk 0:01:58.1]} 14... Qxa8 {[%clk 0:02:38.8]} 15. b5
{[%clk 0:01:57.8]} 15... Nxe4 {[%clk 0:02:25.3]} 16. bxc6 {[%clk 0:01:58.1]}
16... dxc6 {[%clk 0:02:22.9]} 17. Bb4+ {[%clk 0:01:49]} 17... c5 {[%clk
0:02:17.5]} 18. Bd3 {[%clk 0:01:46.6]} 18... Rd8 {[%clk 0:02:11.7]} 19. Ba3
{[%clk 0:01:45.7]} 19... Qa5+ {[%clk 0:02:08.7]} 20. Ke2 {[%clk 0:01:45.8]}
20... Qxa3 {[%clk 0:01:52.6]} 21. bxa3 {[%clk 0:01:44.2]} 21... Nc3+ {[%clk
0:01:52.6]} 22. Ke3 {[%clk 0:01:43]} 22... Nxd1+ {[%clk 0:01:51.8]} 23. Rxd1
{[%clk 0:01:43.9]} 23... e5 {[%clk 0:01:44.3]} 24. Rb1 {[%clk 0:01:41.7]} 24...
Rxd3+ {[%clk 0:01:38.7]} 0-1